Workbook

Sheet Cover Page

Sheet STPIS Targets & Incentive Rates
L1: Escalation
A2: Measure | B2: 2018-19 | C2: 2019-20 | D2: 2020-21 | E2: 2021-22 | F2: 2022-23 | G2: Targets | L2: Index Numbers All groups CPI
A3: Unplanned SAIDI - CBD | B3: =B75+$C40 -> 3.151201842 | C3: =C75+$C40 -> 3.881333525 | D3: 6.708207257 | E3: 5.056618344 | F3: 3.380563124 | G3: =AVERAGE(B3:F3) -> 4.435584818 | L3: 2019-09-01 | M3: 115.4
A4: Unplanned SAIDI - urban | B4: =B76+$D40 -> 49.16520184 | C4: =C76+$D40 -> 53.72839723 | D4: 51.6572037 | E4: 59.54614213 | F4: 56.07892643 | G4: =AVERAGE(B4:F4) -> 54.03517427 | L4: DEC 2025 | M4: 144.6
A5: Unplanned SAIDI - short rural | B5: =B77+$E40 -> 142.2162018 | C5: =C77+$E40 -> 124.7807446 | D5: 129.9728855 | E5: 154.5187782 | F5: 110.4361779 | G5: =AVERAGE(B5:F5) -> 132.3849576 | L5: CPI | M5: =M4/M3-1 -> 0.2530329289
A6: Unplanned SAIDI - long rural | L6: Source: ABS
A8: Unplanned SAIFI - CBD | B8: =B80+$C41 -> 0.02395991995 | C8: =C80+$C41 -> 0.03309454991 | D8: 0.09544104965 | E8: 0.08369509785 | F8: 0.02464549335 | G8: =AVERAGE(B8:F8) -> 0.05216722214
A9: Unplanned SAIFI - urban | B9: =B81+$D41 -> 0.56835992 | C9: =C81+$D41 -> 0.5796161557 | D9: 0.5615982364 | E9: 0.5772509323 | F9: 0.5386432189 | G9: =AVERAGE(B9:F9) -> 0.5650936926
A10: Unplanned SAIFI - short rural | B10: =B82+$E41 -> 1.21205992 | C10: =C82+$E41 -> 1.256652826 | D10: 1.186789316 | E10: 1.281576908 | F10: 0.9558237769 | G10: =AVERAGE(B10:F10) -> 1.178580549
A11: Unplanned SAIFI - long rural
C18: CBD | D18: Urban | E18: Short rural
A19: Output parmaeters
A20: ir - SAIDI | C20: =((C23*(1+C24)*(1-(1/(1+C25)))*C26)/C27)/(365.25*24*60)*100 -> 0.002539438661 | D20: =((D23*(1+D24)*(1-(1/(1+D25)))*D26)/D27)/(365.25*24*60)*100 -> 0.05424452633 | E20: =((E23*(1+E24)*(1-(1/(1+E25)))*E26)/E27)/(365.25*24*60)*100 -> 0.01958275182
A21: ir - SAIFI | C21: =(C23*(1+C24)/(1+C25))*C26/C27/(365.25*24*60)*C28/C29*100 -> 0.1439460145 | D21: =(D23*(1+D24)/(1+D25))*D26/D27/(365.25*24*60)*D28/D29*100 -> 3.457966318 | E21: =(E23*(1+E24)/(1+E25))*E26/E27/(365.25*24*60)*E28/E29*100 -> 1.466431672
A22: Input parameters
A23: VCR | C23: =B66 -> 44520 | D23: =C66 -> 40030 | E23: =D66 -> 40030
A24: CPI | C24: =M5 -> 0.2530329289 | D24: =M5 -> 0.2530329289 | E24: =M5 -> 0.2530329289
A25: w_n | C25: 1.5 | D25: 1.5 | E25: 1.5
A26: C_n | C26: =I96 -> 650234.5906 | D26: =I97 -> 15447486.66 | E26: =I98 -> 5576678.752
A27: R | C27: =G30 -> 1629478053 | D27: =$G$30 -> 1629478053 | E27: =$G$30 -> 1629478053
A28: SAIDI | C28: =G3 -> 4.435584818 | D28: =G4 -> 54.03517427 | E28: =G5 -> 132.3849576
A29: SAIFI | C29: =G8 -> 0.05216722214 | D29: =G9 -> 0.5650936926 | E29: =G10 -> 1.178580549
A30: Smoothed MAR | G30: 1629478053
A32: %above cap exlcuding telephone answering | D32: =G90 -> 0.01349285599 | E32: (5 years - 2018/19 to 2022/23)
A33: SAIDI proportion | D33: =D32*0.6 -> 0.008095713592
A34: SAIFI proportion | D34: =D32*0.4 -> 0.005397142395
A35: SAIDI Incentive rates in current regulatory period | C35: 2.99e-05 | D35: 0.0006515 | E35: 0.0001649
A36: Adj required to 2025-30 RCP reliability targets due to R@R cap for 2020-25 SAIDI | C36: =$D33*C$35/(SUM($C$35:$E$35)) -> 0.0002860236753 | D36: =$D33*D$35/(SUM($C$35:$E$35)) -> 0.006232254999 | E36: 0.001577434918
A37: SAIFI Incentive rates in current regulatory period | C37: 0.0016386 | D37: 0.0406025 | E37: 0.0118387
A38: Adj required to 2025-30 RCP reliability targets due to R@R cap for 2020-25 SAIFI | C38: =$D34*C$37/SUM($C$37:$E$37) -> 0.0001635316242 | D38: =$D34*D$37/SUM($C$37:$E$37) -> 0.004052113249 | E38: 0.001181497522
A40: Adj required to 2025-30 RCP reliability targets due to R@R | C40: =C36/C35/5 -> 1.913201842 | D40: =D36/D35/5 -> 1.913201842 | E40: 1.913201842
A41: Adj required to 2025-30 RCP reliability targets due to R@R | C41: =C38/C37/5 -> 0.01995991995 | D41: =D38/D37/5 -> 0.01995991995 | E41: 0.01995991995
A44: Output tables
A45: Table 1 incentive rates
B46: =C18 -> CBD | C46: =D18 -> Urban | D46: =E18 -> Short rural
A47: SAIDI | B47: =C20 -> 0.002539438661 | C47: =D20 -> 0.05424452633 | D47: 0.01958275182
A48: SAIFI | B48: =C21 -> 0.1439460145 | C48: 3.457966318 | D48: 1.466431672
A50: Table 2 targets
B51: value
A52: =B46 -> CBD
A53: SAIDI | B53: =G3 -> 4.435584818
A54: SAIFI | B54: =G8 -> 0.05216722214
A55: =C46 -> Urban
A56: SAIDI | B56: =G4 -> 54.03517427
A57: SAIFI | B57: =G9 -> 0.5650936926
A58: =D46 -> Short rural
A59: SAIDI | B59: =G5 -> 132.3849576
A60: SAIFI | B60: =G10 -> 1.178580549
A64: Table 3
B65: =B46 -> CBD | C65: =C46 -> Urban | D65: =D46 -> Short rural
A66: VCR | B66: 44520 | C66: 40030 | D66: 40030
A73: data (<= 3MIN Momentary Removed)
A74: Measure | B74: =B2 -> 2018-19 | C74: 2019-20 | D74: 2020-21 | E74: 2021-22 | F74: 2022-23
A75: Unplanned SAIDI - CBD | B75: 1.238 | C75: 1.968131683 | D75: 4.795005415 | E75: 3.143416502 | F75: 1.467361282
A76: Unplanned SAIDI - urban | B76: 47.252 | C76: 51.81519539 | D76: 49.74400186 | E76: 57.63294029 | F76: 54.16572459
A77: Unplanned SAIDI - short rural | B77: 140.303 | C77: 122.8675427 | D77: 128.0596836 | E77: 152.6055764 | F77: 108.522976
A78: Unplanned SAIDI - long rural
A80: Unplanned SAIFI - CBD | B80: 0.004 | C80: 0.01313462996 | D80: 0.0754811297 | E80: 0.0637351779 | F80: 0.0046855734
A81: Unplanned SAIFI - urban | B81: 0.5484 | C81: 0.5596562358 | D81: 0.5416383164 | E81: 0.5572910123 | F81: 0.5186832989
A82: Unplanned SAIFI - short rural | B82: 1.1921 | C82: 1.236692906 | D82: 1.166829396 | E82: 1.261616988 | F82: 0.9358638569
A83: Unplanned SAIFI - long rural
A87: S-Factor | B87: 2018-19 | C87: 2019-20 | D87: 2020-21 | E87: 2021-22 | F87: 2022-23 | G87: Cumulative
A88: sum of the raw s-factors for the relaibility of supply parameters | B88: 0.02682655256 | C88: 0.02466630343 | D88: 0.01331491312 | E88: 0.0024365254 | F88: 0.01753651263
A89: Reliability cap | B89: 0.019 | C89: 0.019 | D89: 0.018 | E89: 0.018 | F89: 0.018
A90: performance over the cap | B90: =IF(B88>B89,B88-B89,0) -> 0.007826552562 | C90: =IF(C88>C89,C88-C89,0) -> 0.005666303425 | D90: 0 | E90: 0 | F90: 0 | G90: =SUM(B90:F90) -> 0.01349285599
A94: FORECAST ENERGY CONSUMPTION BY NETWORK TYPE
A95: Network Type | C95: Source | D95: 2023/24 | E95: 2024/25 | F95: 2025/26 | G95: 2026/27 | H95: 2027/28 | I95: 5 Year Average MWH
A96: CBD | D96: 657092.6179 | E96: 653612.6041 | F96: 648482.5836 | G96: 644852.5692 | H96: 647132.5782 | I96: =AVERAGE(D96:H96) -> 650234.5906
A97: URBAN | D97: 15610411.37 | E97: 15527737.41 | F97: 15405864.6 | G97: 15319627.1 | H97: 15373792.8 | I97: =AVERAGE(D97:H97) -> 15447486.66
A98: SHORT RURAL | D98: 5635496.01 | E98: 5605649.982 | F98: 5561652.821 | G98: 5530520.327 | H98: 5550074.621 | I98: 5576678.752
